[Event "Titled Tuesday Blitz June 27 Early 2023"]
[White "Suleymanli, Aydin"]
[Black "Bruedigam, Martin"]
[WhiteFideId "13413937"]
[BlackFideId "24608033"]
[WhiteElo "2947"]
[BlackElo "2521"]
[Result "1-0"]
[Round "1"]
[TimeControl "180+2"]
[Date "2023.06.27"]
[WhiteClock "0:00:03"]
[BlackClock "0:00:04"]
[Board "29"]

1. e4 {[%clk 0:02:54]}  c6 {[%clk 0:02:59]} 2. Nc3 {[%clk 0:02:46]}  d5 {[%clk 0:02:59]} 3. Nf3 {[%clk 0:02:46]}  dxe4 {[%clk 0:02:57]} 4. Nxe4 {[%clk 0:02:47]}  Nf6 {[%clk 0:02:57]} 5. Qe2 {[%clk 0:02:47]}  Nxe4 {[%clk 0:02:57]} 6. Qxe4 {[%clk 0:02:48]}  Qd5 {[%clk 0:02:57]} 7. Bd3 {[%clk 0:02:44]}  Qxe4+ {[%clk 0:02:54]} 8. Bxe4 {[%clk 0:02:45]}  Nd7 {[%clk 0:02:55]} 9. d4 {[%clk 0:02:46]}  Nf6 {[%clk 0:02:55]} 10. Bd3 {[%clk 0:02:46]}  g6 {[%clk 0:02:51]} 11. b3 {[%clk 0:02:41]}  Bf5 {[%clk 0:02:50]} 12. Ke2 {[%clk 0:02:35]}  Bxd3+ {[%clk 0:02:39]} 13. Kxd3 {[%clk 0:02:35]}  Bg7 {[%clk 0:02:36]} 14. Ba3 {[%clk 0:02:34]}  e6 {[%clk 0:02:36]} 15. Rhe1 {[%clk 0:02:33]}  Nd5 {[%clk 0:02:24]} 16. g3 {[%clk 0:02:31]}  O-O-O {[%clk 0:01:59]} 17. c4 {[%clk 0:02:29]}  Nc7 {[%clk 0:01:43]} 18. Kc2 {[%clk 0:02:27]}  Ne8 {[%clk 0:01:26]} 19. Rad1 {[%clk 0:02:20]}  Nd6 {[%clk 0:01:26]} 20. Ng5 {[%clk 0:02:19]}  Bf6 {[%clk 0:01:17]} 21. Nf3 {[%clk 0:02:00]}  Nf5 {[%clk 0:01:15]} 22. Bb2 {[%clk 0:01:58]}  h5 {[%clk 0:01:15]} 23. h4 {[%clk 0:01:38]}  Rd7 {[%clk 0:01:12]} 24. Ne5 {[%clk 0:01:11]}  Bxe5 {[%clk 0:01:11]} 25. dxe5 {[%clk 0:01:06]}  Rxd1 {[%clk 0:01:10]} 26. Rxd1 {[%clk 0:01:04]}  Rd8 {[%clk 0:01:10]} 27. Re1 {[%clk 0:01:00]}  Kc7 {[%clk 0:00:49]} 28. Re4 {[%clk 0:00:59]}  Rd7 {[%clk 0:00:24]} 29. Bc1 {[%clk 0:00:51]}  Rd4 {[%clk 0:00:22]} 30. Re1 {[%clk 0:00:49]}  b5 {[%clk 0:00:21]} 31. Kc3 {[%clk 0:00:39]}  Rd7 {[%clk 0:00:18]} 32. Bg5 {[%clk 0:00:36]}  Kb6 {[%clk 0:00:17]} 33. Rg1 {[%clk 0:00:23]}  a5 {[%clk 0:00:17]} 34. a3 {[%clk 0:00:21]}  Kc5 {[%clk 0:00:16]} 35. b4+ {[%clk 0:00:19]}  axb4+ {[%clk 0:00:17]} 36. axb4+ {[%clk 0:00:20]}  Kb6 {[%clk 0:00:18]} 37. c5+ {[%clk 0:00:20]}  Kb7 {[%clk 0:00:18]} 38. Bf6 {[%clk 0:00:09]}  Rd4 {[%clk 0:00:18]} 39. f3 {[%clk 0:00:07]}  Rc4+ {[%clk 0:00:18]} 40. Kd3 {[%clk 0:00:07]}  Nd4 {[%clk 0:00:17]} 41. Ke3 {[%clk 0:00:04]}  Nc2+ {[%clk 0:00:17]} 42. Kd2 {[%clk 0:00:04]}  Nxb4 {[%clk 0:00:16]} 43. g4 {[%clk 0:00:05]}  Nd5 {[%clk 0:00:16]} 44. gxh5 {[%clk 0:00:04]}  Nxf6 {[%clk 0:00:11]} 45. hxg6 {[%clk 0:00:04]}  Ne4+ {[%clk 0:00:09]} 46. fxe4 {[%clk 0:00:04]}  fxg6 {[%clk 0:00:09]} 47. Rxg6 {[%clk 0:00:03]}  Rxe4 {[%clk 0:00:10]} 48. Rxe6 {[%clk 0:00:04]}  Rxh4 {[%clk 0:00:10]} 49. Re7+ {[%clk 0:00:04]}  Kb8 {[%clk 0:00:08]} 50. e6 {[%clk 0:00:04]}  Re4 {[%clk 0:00:08]} 51. Kd3 {[%clk 0:00:04]}  Re5 {[%clk 0:00:08]} 52. Kd4 {[%clk 0:00:03]}  Re1 {[%clk 0:00:08]} 53. Kc3 {[%clk 0:00:04]}  Re4 {[%clk 0:00:08]} 54. Kb3 {[%clk 0:00:04]}  Kc8 {[%clk 0:00:07]} 55. Ka3 {[%clk 0:00:04]}  Kd8 {[%clk 0:00:07]} 56. Rd7+ {[%clk 0:00:05]}  Kc8 {[%clk 0:00:07]} 57. Rd6 {[%clk 0:00:06]}  Kc7 {[%clk 0:00:08]} 58. Kb3 {[%clk 0:00:06]}  Re5 {[%clk 0:00:08]} 59. Kb4 {[%clk 0:00:06]}  Re4+ {[%clk 0:00:08]} 60. Kc3 {[%clk 0:00:06]}  Rc4+ {[%clk 0:00:08]} 61. Kd3 {[%clk 0:00:04]}  Rxc5 {[%clk 0:00:09]} 62. Rd7+ {[%clk 0:00:03]}  Kb6 {[%clk 0:00:08]} 63. Kd4 {[%clk 0:00:02]}  Rd5+ {[%clk 0:00:06]} 64. Rxd5 {[%clk 0:00:02]}  cxd5 {[%clk 0:00:04]} 65. e7 {[%clk 0:00:03]} 1-0


[Site "https://www.chess.com"]

[Event "Titled Tuesday Blitz June 27 Early 2023"]
[White "Rodriguez, Santiago"]
[Black "Kozak, Adam"]
[WhiteFideId "3000591"]
[BlackFideId "753246"]
[WhiteElo "2520"]
[BlackElo "2945"]
[Result "0-1"]
[Round "1"]
[TimeControl "180+2"]
[Date "2023.06.27"]
[WhiteClock "0:00:08"]
[BlackClock "0:01:30"]
[Board "30"]

1. d4 {[%clk 0:02:57]}  Nf6 {[%clk 0:02:54]} 2. Bg5 {[%clk 0:02:55]}  c5 {[%clk 0:02:51]} 3. d5 {[%clk 0:02:54]}  b5 {[%clk 0:02:49]} 4. Bxf6 {[%clk 0:02:52]}  exf6 {[%clk 0:02:47]} 5. a4 {[%clk 0:02:52]}  b4 {[%clk 0:02:47]} 6. Nd2 {[%clk 0:02:52]}  f5 {[%clk 0:02:45]} 7. Nc4 {[%clk 0:02:51]}  d6 {[%clk 0:02:44]} 8. g3 {[%clk 0:02:48]}  g6 {[%clk 0:02:40]} 9. Bg2 {[%clk 0:02:43]}  Bg7 {[%clk 0:02:40]} 10. Nh3 {[%clk 0:02:42]}  Ba6 {[%clk 0:02:40]} 11. b3 {[%clk 0:02:28]}  O-O {[%clk 0:02:39]} 12. Nf4 {[%clk 0:02:24]}  Bxc4 {[%clk 0:02:38]} 13. bxc4 {[%clk 0:02:24]}  Bxa1 {[%clk 0:02:39]} 14. Qxa1 {[%clk 0:02:23]}  Nd7 {[%clk 0:02:39]} 15. h4 {[%clk 0:02:23]}  Qf6 {[%clk 0:02:39]} 16. Qc1 {[%clk 0:02:19]}  Rfe8 {[%clk 0:02:38]} 17. h5 {[%clk 0:02:13]}  g5 {[%clk 0:02:37]} 18. Nd3 {[%clk 0:02:10]}  h6 {[%clk 0:02:37]} 19. O-O {[%clk 0:02:10]}  Nb6 {[%clk 0:02:35]} 20. f4 {[%clk 0:02:01]}  g4 {[%clk 0:02:35]} 21. e4 {[%clk 0:02:00]}  fxe4 {[%clk 0:02:34]} 22. Nf2 {[%clk 0:02:00]}  Qf5 {[%clk 0:02:34]} 23. Re1 {[%clk 0:01:57]}  e3 {[%clk 0:02:34]} 24. Rxe3 {[%clk 0:01:55]}  Nxc4 {[%clk 0:02:34]} 25. Rxe8+ {[%clk 0:01:50]}  Rxe8 {[%clk 0:02:35]} 26. Qf1 {[%clk 0:01:36]}  Ne3 {[%clk 0:02:20]} 27. Qb5 {[%clk 0:01:31]}  Kf8 {[%clk 0:02:20]} 28. Qa6 {[%clk 0:01:15]}  Qf6 {[%clk 0:02:18]} 29. Ne4 {[%clk 0:01:09]}  Rxe4 {[%clk 0:02:16]} 30. Bxe4 {[%clk 0:01:07]}  Nd1 {[%clk 0:02:04]} 31. Qc8+ {[%clk 0:01:01]}  Ke7 {[%clk 0:02:03]} 32. Qc7+ {[%clk 0:00:56]}  Ke8 {[%clk 0:02:04]} 33. Qc8+ {[%clk 0:00:56]}  Qd8 {[%clk 0:02:04]} 34. Qxg4 {[%clk 0:00:49]}  Nc3 {[%clk 0:02:02]} 35. Bg6 {[%clk 0:00:17]}  Qd7 {[%clk 0:01:37]} 36. f5 {[%clk 0:00:13]}  Kf8 {[%clk 0:01:34]} 37. Qf4 {[%clk 0:00:12]}  fxg6 {[%clk 0:01:31]} 38. Qxh6+ {[%clk 0:00:11]}  Qg7 {[%clk 0:01:31]} 39. Qf4 {[%clk 0:00:11]}  Qd4+ {[%clk 0:01:30]} 40. Kh2 {[%clk 0:00:11]}  Qxf4 {[%clk 0:01:29]} 41. gxf4 {[%clk 0:00:08]}  gxh5 {[%clk 0:01:30]} 0-1


[Site "https://www.chess.com"]

[Event "Titled Tuesday Blitz June 27 Early 2023"]
[White "Keleberda, Tymur"]
[Black "Movahed, Sina"]
[WhiteFideId "14174294"]
[BlackFideId "42520835"]
[WhiteElo "2519"]
[BlackElo "2940"]
[Result "0-1"]
[Round "1"]
[TimeControl "180+2"]
[Date "2023.06.27"]
[WhiteClock "0:00:11"]
[BlackClock "0:00:40"]
[Board "32"]

1. e4 {[%clk 0:02:59]}  c5 {[%clk 0:02:59]} 2. Nf3 {[%clk 0:03:00]}  d6 {[%clk 0:02:59]} 3. c3 {[%clk 0:03:00]}  Nf6 {[%clk 0:03:00]} 4. h3 {[%clk 0:03:00]}  g6 {[%clk 0:02:59]} 5. Bd3 {[%clk 0:03:00]}  Bg7 {[%clk 0:02:59]} 6. Bc2 {[%clk 0:03:01]}  O-O {[%clk 0:02:59]} 7. d4 {[%clk 0:03:02]}  cxd4 {[%clk 0:02:59]} 8. cxd4 {[%clk 0:03:02]}  e5 {[%clk 0:02:56]} 9. O-O {[%clk 0:02:59]}  exd4 {[%clk 0:02:56]} 10. Nxd4 {[%clk 0:02:59]}  Nc6 {[%clk 0:02:54]} 11. Nc3 {[%clk 0:02:57]}  d5 {[%clk 0:02:53]} 12. Be3 {[%clk 0:02:35]}  Ne5 {[%clk 0:02:41]} 13. Bf4 {[%clk 0:02:12]}  Nc4 {[%clk 0:02:39]} 14. Ndb5 {[%clk 0:02:07]}  Bd7 {[%clk 0:02:25]} 15. Nc7 {[%clk 0:01:56]}  Rc8 {[%clk 0:02:22]} 16. N7xd5 {[%clk 0:01:53]}  Nxb2 {[%clk 0:02:20]} 17. Qe2 {[%clk 0:01:46]}  Nxd5 {[%clk 0:02:17]} 18. Nxd5 {[%clk 0:01:47]}  Re8 {[%clk 0:02:01]} 19. Bb3 {[%clk 0:01:39]}  Be6 {[%clk 0:02:02]} 20. Qf3 {[%clk 0:01:25]}  a5 {[%clk 0:02:02]} 21. Rac1 {[%clk 0:01:25]}  Rxc1 {[%clk 0:01:58]} 22. Rxc1 {[%clk 0:01:26]}  a4 {[%clk 0:01:58]} 23. Bc2 {[%clk 0:01:24]}  Qa5 {[%clk 0:01:39]} 24. Qa3 {[%clk 0:01:16]}  Bxd5 {[%clk 0:01:33]} 25. exd5 {[%clk 0:01:17]}  Re1+ {[%clk 0:01:13]} 26. Rxe1 {[%clk 0:01:02]}  Qxe1+ {[%clk 0:01:14]} 27. Kh2 {[%clk 0:01:03]}  Qxf2 {[%clk 0:01:06]} 28. Qe3 {[%clk 0:01:03]}  Qxe3 {[%clk 0:00:56]} 29. Bxe3 {[%clk 0:01:04]}  Be5+ {[%clk 0:00:51]} 30. g3 {[%clk 0:01:03]}  b5 {[%clk 0:00:51]} 31. Bc5 {[%clk 0:01:00]}  Nc4 {[%clk 0:00:48]} 32. Bd3 {[%clk 0:01:00]}  f5 {[%clk 0:00:47]} 33. Bxc4 {[%clk 0:00:56]}  bxc4 {[%clk 0:00:47]} 34. d6 {[%clk 0:00:56]}  Kf7 {[%clk 0:00:46]} 35. d7 {[%clk 0:00:56]}  Bc7 {[%clk 0:00:46]} 36. Kg2 {[%clk 0:00:37]}  Ke6 {[%clk 0:00:44]} 37. g4 {[%clk 0:00:32]}  Kxd7 {[%clk 0:00:43]} 38. gxf5 {[%clk 0:00:30]}  gxf5 {[%clk 0:00:44]} 39. Kf3 {[%clk 0:00:30]}  Kc6 {[%clk 0:00:44]} 40. Bd4 {[%clk 0:00:27]}  Kd5 {[%clk 0:00:45]} 41. Bc3 {[%clk 0:00:26]}  Be5 {[%clk 0:00:46]} 42. Bb4 {[%clk 0:00:25]}  c3 {[%clk 0:00:46]} 43. Ba3 {[%clk 0:00:25]}  c2 {[%clk 0:00:45]} 44. Ke3 {[%clk 0:00:24]}  f4+ {[%clk 0:00:43]} 45. Kd3 {[%clk 0:00:24]}  f3 {[%clk 0:00:44]} 46. Ke3 {[%clk 0:00:24]}  Bd6 {[%clk 0:00:41]} 47. Bb2 {[%clk 0:00:22]}  a3 {[%clk 0:00:39]} 48. Bc1 {[%clk 0:00:17]}  Bf4+ {[%clk 0:00:40]} 49. Kxf4 {[%clk 0:00:11]}  f2 {[%clk 0:00:40]} 0-1


[Site "https://www.chess.com"]

[Event "Titled Tuesday Blitz June 27 Early 2023"]
[White "Indjic, Aleksandar"]
[Black "Gamayev, Oleg"]
[WhiteFideId "911925"]
[BlackFideId "2802813"]
[WhiteElo "2938"]
[BlackElo "2519"]
[Result "1-0"]
[Round "1"]
[TimeControl "180+2"]
[Date "2023.06.27"]
[WhiteClock "0:01:49"]
[BlackClock "0:02:21"]
[Board "33"]

1. e4 {[%clk 0:02:59]}  d6 {[%clk 0:02:59]} 2. d4 {[%clk 0:02:57]}  Nf6 {[%clk 0:03:00]} 3. Nc3 {[%clk 0:02:57]}  e5 {[%clk 0:03:00]} 4. dxe5 {[%clk 0:02:57]}  dxe5 {[%clk 0:03:01]} 5. Qxd8+ {[%clk 0:02:57]}  Kxd8 {[%clk 0:03:02]} 6. Bc4 {[%clk 0:02:56]}  Be6 {[%clk 0:03:01]} 7. Bxe6 {[%clk 0:02:55]}  fxe6 {[%clk 0:03:02]} 8. Be3 {[%clk 0:02:52]}  Bd6 {[%clk 0:03:03]} 9. f3 {[%clk 0:02:51]}  Nc6 {[%clk 0:03:03]} 10. O-O-O {[%clk 0:02:50]}  Ke7 {[%clk 0:03:03]} 11. Nh3 {[%clk 0:02:50]}  a6 {[%clk 0:03:04]} 12. Nf2 {[%clk 0:02:50]}  h6 {[%clk 0:03:04]} 13. a3 {[%clk 0:02:47]}  b6 {[%clk 0:03:05]} 14. Nb1 {[%clk 0:02:46]}  Rhd8 {[%clk 0:03:06]} 15. Nd2 {[%clk 0:02:45]}  Nd7 {[%clk 0:03:06]} 16. Nd3 {[%clk 0:02:45]}  Nd4 {[%clk 0:03:03]} 17. c3 {[%clk 0:02:43]}  Nc6 {[%clk 0:02:56]} 18. Kc2 {[%clk 0:02:40]}  Na5 {[%clk 0:02:56]} 19. b4 {[%clk 0:02:39]}  Nc6 {[%clk 0:02:56]} 20. a4 {[%clk 0:02:40]}  a5 {[%clk 0:02:47]} 21. b5 {[%clk 0:02:39]}  Na7 {[%clk 0:02:44]} 22. Nc4 {[%clk 0:02:39]}  Nc8 {[%clk 0:02:42]} 23. g3 {[%clk 0:02:35]}  Kf6 {[%clk 0:02:41]} 24. f4 {[%clk 0:02:35]}  exf4 {[%clk 0:02:39]} 25. gxf4 {[%clk 0:02:33]}  e5 {[%clk 0:02:39]} 26. fxe5+ {[%clk 0:02:28]}  Bxe5 {[%clk 0:02:38]} 27. Rhf1+ {[%clk 0:02:14]}  Ke6 {[%clk 0:02:37]} 28. Ndxe5 {[%clk 0:01:55]}  Nxe5 {[%clk 0:02:37]} 29. Rxd8 {[%clk 0:01:54]}  Nxc4 {[%clk 0:02:37]} 30. Bd4 {[%clk 0:01:54]}  N4d6 {[%clk 0:02:30]} 31. Rff8 {[%clk 0:01:52]}  g5 {[%clk 0:02:25]} 32. e5 {[%clk 0:01:49]}  Nf5 {[%clk 0:02:21]} 33. Rxc8 {[%clk 0:01:49]} 1-0


[Site "https://www.chess.com"]

[Event "Titled Tuesday Blitz June 27 Early 2023"]
[White "Estrada Nieto, Julian"]
[Black "Antipov, Mikhail Al."]
[WhiteFideId "5101018"]
[BlackFideId "4107012"]
[WhiteElo "2518"]
[BlackElo "2915"]
[Result "0-1"]
[Round "1"]
[TimeControl "180+2"]
[Date "2023.06.27"]
[WhiteClock "0:00:26"]
[BlackClock "0:01:28"]
[Board "34"]

1. e4 {[%clk 0:02:54]}  c5 {[%clk 0:02:50]} 2. Nf3 {[%clk 0:02:52]}  d6 {[%clk 0:02:49]} 3. Bb5+ {[%clk 0:02:52]}  Nd7 {[%clk 0:02:48]} 4. d4 {[%clk 0:02:51]}  cxd4 {[%clk 0:02:48]} 5. Qxd4 {[%clk 0:02:52]}  a6 {[%clk 0:02:49]} 6. Bxd7+ {[%clk 0:02:51]}  Bxd7 {[%clk 0:02:49]} 7. Nc3 {[%clk 0:02:52]}  h6 {[%clk 0:02:47]} 8. a4 {[%clk 0:02:42]}  e5 {[%clk 0:02:47]} 9. Qd3 {[%clk 0:02:42]}  Nf6 {[%clk 0:02:46]} 10. Nd2 {[%clk 0:02:43]}  Be7 {[%clk 0:02:43]} 11. Nc4 {[%clk 0:02:42]}  O-O {[%clk 0:02:43]} 12. O-O {[%clk 0:02:34]}  Be6 {[%clk 0:02:41]} 13. Ne3 {[%clk 0:02:33]}  Rc8 {[%clk 0:02:40]} 14. Rd1 {[%clk 0:02:33]}  Rc6 {[%clk 0:02:22]} 15. a5 {[%clk 0:02:13]}  Qd7 {[%clk 0:02:21]} 16. Ncd5 {[%clk 0:02:11]}  Bxd5 {[%clk 0:02:12]} 17. exd5 {[%clk 0:02:11]}  Rcc8 {[%clk 0:02:12]} 18. c4 {[%clk 0:02:05]}  e4 {[%clk 0:02:12]} 19. Qd4 {[%clk 0:01:48]}  Rfe8 {[%clk 0:02:12]} 20. Bd2 {[%clk 0:01:47]}  Ng4 {[%clk 0:02:03]} 21. Nxg4 {[%clk 0:01:44]}  Qxg4 {[%clk 0:02:03]} 22. h3 {[%clk 0:01:29]}  Qg6 {[%clk 0:02:00]} 23. Qb6 {[%clk 0:01:11]}  Rxc4 {[%clk 0:01:59]} 24. Qxb7 {[%clk 0:01:11]}  Bh4 {[%clk 0:01:54]} 25. Be3 {[%clk 0:01:08]}  Bxf2+ {[%clk 0:01:40]} 26. Bxf2 {[%clk 0:01:06]}  e3 {[%clk 0:01:41]} 27. Bxe3 {[%clk 0:00:51]}  Rxe3 {[%clk 0:01:34]} 28. Qxa6 {[%clk 0:00:51]}  Re2 {[%clk 0:01:30]} 29. g4 {[%clk 0:00:39]}  Qe4 {[%clk 0:01:28]} 30. Qa8+ {[%clk 0:00:26]}  Kh7 {[%clk 0:01:28]} 0-1


[Site "https://www.chess.com"]

[Event "Titled Tuesday Blitz June 27 Early 2023"]
[White "Baskakov, Egor"]
[Black "Berezin, Viktor"]
[WhiteFideId "24197866"]
[BlackFideId "14107872"]
[WhiteElo "2911"]
[BlackElo "2517"]
[Result "1-0"]
[Round "1"]
[TimeControl "180+2"]
[Date "2023.06.27"]
[WhiteClock "0:00:21"]
[BlackClock "0:00:02"]
[Board "35"]

1. e4 {[%clk 0:03:00]}  g6 {[%clk 0:01:44]} 2. g3 {[%clk 0:02:59]}  Bg7 {[%clk 0:01:44]} 3. Bg2 {[%clk 0:02:59]}  d6 {[%clk 0:01:45]} 4. Ne2 {[%clk 0:02:59]}  Nf6 {[%clk 0:01:46]} 5. h3 {[%clk 0:02:59]}  O-O {[%clk 0:01:46]} 6. d4 {[%clk 0:03:00]}  c6 {[%clk 0:01:46]} 7. O-O {[%clk 0:03:00]}  Nbd7 {[%clk 0:01:47]} 8. c4 {[%clk 0:03:00]}  e5 {[%clk 0:01:47]} 9. Nbc3 {[%clk 0:03:00]}  Re8 {[%clk 0:01:46]} 10. Re1 {[%clk 0:03:00]}  a6 {[%clk 0:01:42]} 11. Be3 {[%clk 0:02:54]}  b5 {[%clk 0:01:42]} 12. d5 {[%clk 0:02:49]}  cxd5 {[%clk 0:01:37]} 13. cxd5 {[%clk 0:02:50]}  Nb6 {[%clk 0:01:32]} 14. b3 {[%clk 0:02:49]}  b4 {[%clk 0:01:32]} 15. Nb1 {[%clk 0:02:44]}  a5 {[%clk 0:01:32]} 16. Nd2 {[%clk 0:02:44]}  Ba6 {[%clk 0:01:32]} 17. g4 {[%clk 0:02:38]}  Nfd7 {[%clk 0:01:31]} 18. Ng3 {[%clk 0:02:34]}  Bb5 {[%clk 0:01:27]} 19. Rc1 {[%clk 0:02:29]}  Rc8 {[%clk 0:01:22]} 20. Bf1 {[%clk 0:02:28]}  Bxf1 {[%clk 0:01:22]} 21. Kxf1 {[%clk 0:02:28]}  Rxc1 {[%clk 0:01:19]} 22. Qxc1 {[%clk 0:02:29]}  Qc8 {[%clk 0:01:14]} 23. Kg2 {[%clk 0:02:20]}  Qa6 {[%clk 0:01:09]} 24. Qb1 {[%clk 0:02:09]}  Rc8 {[%clk 0:01:09]} 25. Rc1 {[%clk 0:02:09]}  Qb5 {[%clk 0:00:52]} 26. Rc2 {[%clk 0:02:04]}  Rc3 {[%clk 0:00:36]} 27. Kf3 {[%clk 0:01:37]}  Bf8 {[%clk 0:00:34]} 28. Ne2 {[%clk 0:01:36]}  Rd3 {[%clk 0:00:21]} 29. Nc4 {[%clk 0:01:11]}  Nxd5 {[%clk 0:00:14]} 30. Rc1 {[%clk 0:01:04]}  Rxe3+ {[%clk 0:00:08]} 31. fxe3 {[%clk 0:00:58]}  N5f6 {[%clk 0:00:08]} 32. Rd1 {[%clk 0:00:54]}  Nc5 {[%clk 0:00:07]} 33. Ng3 {[%clk 0:00:52]}  Qb7 {[%clk 0:00:07]} 34. Nxd6 {[%clk 0:00:46]}  Bxd6 {[%clk 0:00:07]} 35. Rxd6 {[%clk 0:00:46]}  Qb5 {[%clk 0:00:05]} 36. Qc2 {[%clk 0:00:42]}  Ne6 {[%clk 0:00:05]} 37. h4 {[%clk 0:00:36]}  Kg7 {[%clk 0:00:05]} 38. g5 {[%clk 0:00:35]}  Ne8 {[%clk 0:00:04]} 39. Rd5 {[%clk 0:00:34]}  Qa6 {[%clk 0:00:03]} 40. Qb2 {[%clk 0:00:34]}  N8c7 {[%clk 0:00:03]} 41. Qxe5+ {[%clk 0:00:33]}  Kg8 {[%clk 0:00:04]} 42. h5 {[%clk 0:00:29]}  Nxd5 {[%clk 0:00:02]} 43. exd5 {[%clk 0:00:30]}  Nc5 {[%clk 0:00:02]} 44. h6 {[%clk 0:00:30]}  Kf8 {[%clk 0:00:01]} 45. d6 {[%clk 0:00:23]}  Qc6+ {[%clk 0:00:01]} 46. e4 {[%clk 0:00:22]}  Ne6 {[%clk 0:00:02]} 47. Qh8# {[%clk 0:00:21]} 1-0


[Site "https://www.chess.com"]

[Event "Titled Tuesday Blitz June 27 Early 2023"]
[White "Di Nicolantonio, Lucas"]
[Black "Durarbayli, Vasif"]
[WhiteFideId "680460"]
[BlackFideId "13402935"]
[WhiteElo "2516"]
[BlackElo "2909"]
[Result "0-1"]
[Round "1"]
[TimeControl "180+2"]
[Date "2023.06.27"]
[WhiteClock "0:00:02"]
[BlackClock "0:00:07"]
[Board "36"]

1. Nf3 {[%clk 0:03:00]}  d5 {[%clk 0:02:59]} 2. e3 {[%clk 0:03:00]}  c5 {[%clk 0:02:58]} 3. b3 {[%clk 0:02:59]}  Nc6 {[%clk 0:02:57]} 4. Bb2 {[%clk 0:02:59]}  a6 {[%clk 0:02:56]} 5. d4 {[%clk 0:02:53]}  Nf6 {[%clk 0:02:55]} 6. dxc5 {[%clk 0:02:50]}  e6 {[%clk 0:02:54]} 7. a3 {[%clk 0:02:48]}  Bxc5 {[%clk 0:02:54]} 8. Bd3 {[%clk 0:02:47]}  Qe7 {[%clk 0:02:48]} 9. c4 {[%clk 0:02:45]}  O-O {[%clk 0:02:47]} 10. cxd5 {[%clk 0:02:43]}  exd5 {[%clk 0:02:45]} 11. O-O {[%clk 0:02:43]}  Bg4 {[%clk 0:02:44]} 12. Nbd2 {[%clk 0:02:38]}  Rac8 {[%clk 0:02:40]} 13. b4 {[%clk 0:02:37]}  Bd6 {[%clk 0:02:39]} 14. h3 {[%clk 0:02:37]}  Bh5 {[%clk 0:02:39]} 15. Qb3 {[%clk 0:02:19]}  Rfd8 {[%clk 0:02:34]} 16. Rfe1 {[%clk 0:02:13]}  Ne4 {[%clk 0:02:33]} 17. Rac1 {[%clk 0:01:31]}  Bb8 {[%clk 0:02:32]} 18. Bxe4 {[%clk 0:01:24]}  dxe4 {[%clk 0:02:30]} 19. Nd4 {[%clk 0:01:25]}  Qc7 {[%clk 0:01:55]} 20. Nf1 {[%clk 0:01:24]}  Nxd4 {[%clk 0:01:55]} 21. Bxd4 {[%clk 0:00:48]}  Qxc1 {[%clk 0:01:53]} 22. Rxc1 {[%clk 0:00:49]}  Rxc1 {[%clk 0:01:53]} 23. Qb2 {[%clk 0:00:49]}  Rdc8 {[%clk 0:01:26]} 24. g4 {[%clk 0:00:49]}  R8c2 {[%clk 0:01:23]} 25. Qb3 {[%clk 0:00:50]}  Bg6 {[%clk 0:01:18]} 26. Qd5 {[%clk 0:00:50]}  Rc8 {[%clk 0:01:16]} 27. h4 {[%clk 0:00:39]}  h6 {[%clk 0:01:02]} 28. h5 {[%clk 0:00:39]}  Bh7 {[%clk 0:01:03]} 29. g5 {[%clk 0:00:40]}  hxg5 {[%clk 0:00:36]} 30. Qxg5 {[%clk 0:00:41]}  f6 {[%clk 0:00:36]} 31. Bxf6 {[%clk 0:00:41]}  R1c7 {[%clk 0:00:36]} 32. h6 {[%clk 0:00:38]}  g6 {[%clk 0:00:30]} 33. Be5 {[%clk 0:00:35]}  Rf7 {[%clk 0:00:27]} 34. Bxb8 {[%clk 0:00:34]}  Rxb8 {[%clk 0:00:28]} 35. Ng3 {[%clk 0:00:33]}  Re8 {[%clk 0:00:28]} 36. Nh5 {[%clk 0:00:30]}  Ref8 {[%clk 0:00:26]} 37. Nf4 {[%clk 0:00:30]}  Rf5 {[%clk 0:00:25]} 38. Qe7 {[%clk 0:00:27]}  R5f7 {[%clk 0:00:23]} 39. Qe6 {[%clk 0:00:24]}  g5 {[%clk 0:00:17]} 40. Nh5 {[%clk 0:00:20]}  Bf5 {[%clk 0:00:11]} 41. Qe5 {[%clk 0:00:12]}  Kh7 {[%clk 0:00:11]} 42. Ng3 {[%clk 0:00:11]}  Bg6 {[%clk 0:00:11]} 43. Nxe4 {[%clk 0:00:11]}  Bxe4 {[%clk 0:00:05]} 44. Qxe4+ {[%clk 0:00:12]}  Kxh6 {[%clk 0:00:06]} 45. Qh1+ {[%clk 0:00:12]}  Kg6 {[%clk 0:00:06]} 46. Qe4+ {[%clk 0:00:13]}  Kh6 {[%clk 0:00:07]} 47. Qh1+ {[%clk 0:00:13]}  Kg7 {[%clk 0:00:07]} 48. Qg2 {[%clk 0:00:12]}  Kh6 {[%clk 0:00:07]} 49. Qh3+ {[%clk 0:00:12]}  Kg6 {[%clk 0:00:07]} 50. Qe6+ {[%clk 0:00:12]}  Rf6 {[%clk 0:00:07]} 51. Qe4+ {[%clk 0:00:13]}  Kh6 {[%clk 0:00:07]} 52. Qh1+ {[%clk 0:00:13]}  Kg6 {[%clk 0:00:07]} 53. Qe4+ {[%clk 0:00:13]}  Rf5 {[%clk 0:00:07]} 54. Qxb7 {[%clk 0:00:13]}  Rxf2 {[%clk 0:00:07]} 55. Qxa6+ {[%clk 0:00:14]}  R8f6 {[%clk 0:00:07]} 56. Qd3+ {[%clk 0:00:14]}  Kh5 {[%clk 0:00:07]} 57. Qh7+ {[%clk 0:00:14]}  Kg4 {[%clk 0:00:07]} 58. Qe4+ {[%clk 0:00:14]}  Kg3 {[%clk 0:00:06]} 59. Qe5+ {[%clk 0:00:13]}  Kh4 {[%clk 0:00:07]} 60. Kh1 {[%clk 0:00:01]}  Rf1+ {[%clk 0:00:06]} 61. Kg2 {[%clk 0:00:02]}  R6f2# {[%clk 0:00:07]} 0-1


[Site "https://www.chess.com"]